bitfinex/quotes_SOLUSD_20241229
["timestamp","ask_amount","ask_price","bid_price","bid_amount"]
[1735481531611,0.45800754,197.0,196.92,20.0]
[1735481532492,0.45800754,197.0,196.9,22.34727311]
[1735481533598,12.9696,196.99,196.87,0.7615926]
[1735481533807,0.45800754,196.98,196.86,0.76170545]
[1735481534318,0.45800754,196.98,196.88,20.0]
[1735481535000,0.45800754,196.98,196.86,20.0]
[1735481535001,11.423,196.97,196.86,20.0]
[1735481535202,0.45800754,196.96,196.86,20.0]
[1735481536793,0.45800754,196.96,196.88,20.0]
[1735481537701,0.45800754,196.96,196.86,20.0]
[1735481540008,1.5478,196.99,196.83,30.0]
[1735481540009,11.4242,196.95,196.83,30.0]
[1735481540320,0.45800754,196.94,196.83,30.76183124]
[1735481541021,0.45800754,196.94,196.86,20.0]
[1735481543004,0.45800754,196.94,196.81,8.54051429]
[1735481543005,11.4253,196.93,196.81,8.54051429]
[1735481543203,6.50160754,196.92,196.81,7.77868721]
[1735481543399,6.50160754,196.92,196.84,20.0]
[1735481544099,6.50160754,196.92,196.82,20.0]
[1735481545104,11.4265,196.91,196.82,20.0]
[1735481545305,0.45800754,196.9,196.82,20.0]
[1735481548619,0.45800754,196.9,196.8,20.0]
[1735481550201,0.45800754,196.9,196.82,20.0]
[1735481550405,11.4265,196.91,196.84,20.0]
[1735481550730,0.45800754,196.96,196.86,20.0]
[1735481551916,11.4242,196.95,196.86,20.0]
[1735481552118,0.45800754,196.94,196.86,20.0]
[1735481553902,11.4253,196.93,196.85,0.76184108]
[1735481554102,0.45800754,196.92,196.8,0.76178923]
[1735481554314,0.45800754,196.92,196.79,1.5464]
[1735481554516,7.54046296,196.92,196.8,20.0]
[1735481555043,11.4265,196.91,196.8,20.0]
[1735481555336,11.4265,196.91,196.79,32.30837561]
[1735481555337,0.45800754,196.9,196.79,32.30837561]
[1735481556134,0.45800754,196.9,196.82,20.0]
[1735481560609,11.4277,196.89,196.82,20.0]
[1735481560825,0.45800754,196.88,196.82,20.0]
[1735481565140,0.45800754,196.96,196.86,20.0]
[1735481566523,11.4243,196.95,196.86,20.0]
[1735481566727,0.45800754,196.94,196.83,0.76182489]
[1735481566936,0.45800754,196.94,196.83,30.76182489]
[1735481567145,0.45800754,196.94,196.86,20.0]
[1735481568143,0.45800754,196.94,196.83,30.76182489]
[1735481568144,23.776884,196.92,196.83,0.76182489]
[1735481568313,23.776884,196.9,196.79,1.5464]
[1735481568519,23.776884,196.88,196.77,7.77868721]
[1735481568822,6.1009395,196.87,196.77,7.77868721]
[1735481569220,23.776884,196.86,196.74,1.5371]
[1735481569424,0.45800754,196.85,196.74,1.5371]
[1735481570748,11.88850754,196.85,196.74,21.5371]
[1735481572845,0.45800754,196.85,196.74,51.5371]
[1735481573035,0.45800754,196.85,196.75,0.76214891]
[1735481573343,0.45800754,196.88,196.75,0.76214891]
[1735481573845,24.23489154,196.88,196.75,0.76214891]
[1735481574338,0.45800754,196.88,196.75,0.76214891]
[1735481574543,11.4288,196.87,196.75,0.76214891]
[1735481574719,0.45800754,196.86,196.75,0.76214891]
[1735481578828,0.45800754,196.86,196.79,20.0]
[1735481579142,7.64,196.91,196.79,20.0]
[1735481579143,11.88510754,196.9,196.79,20.0]
[1735481584231,11.88510754,196.9,196.79,50.7620293]
[1735481596072,11.88510754,196.9,196.79,0.7620293]
[1735481596380,23.776884,196.89,196.77,7.77868721]
[1735481596670,0.45800754,196.88,196.77,7.77868721]
[1735481597084,0.45800754,196.88,196.74,9.31578721]
[1735481597233,0.45800754,196.88,196.77,20.0]
[1735481597433,11.4294,196.86,196.77,20.0]
[1735481597633,0.45800754,196.85,196.77,20.0]
[1735481597873,0.45800754,196.85,196.76,20.0]
[1735481598586,0.45800754,196.85,196.74,1.5371]
[1735481599092,11.4306,196.84,196.76,20.0]
[1735481599243,0.45800754,196.83,196.76,20.0]
[1735481599444,0.45800754,196.83,196.74,1.5371]
[1735481599952,0.45800754,196.83,196.76,20.0]
[1735481601278,7.00800754,196.83,196.76,20.0]
[1735481601593,11.4317,196.82,196.76,20.0]
[1735481601821,0.45800754,196.81,196.76,20.0]
[1735481602094,0.45800754,196.81,196.74,20.0]
[1735481602766,0.45800754,196.81,196.7,8.54098536]
[1735481603567,0.45800754,196.81,196.73,20.0]
[1735481604657,0.45800754,196.81,196.72,20.0]
[1735481605395,0.45800754,196.81,196.73,20.0]
[1735481607204,0.45800754,196.81,196.72,20.0]
[1735481611172,0.45800754,196.82,196.74,20.0]
[1735481611475,7.00800754,196.83,196.74,20.0]
[1735481616295,0.45800754,196.83,196.74,20.0]
[1735481619203,0.45800754,196.83,196.76,20.0]
[1735481631513,11.4317,196.82,196.73,7.77868721]
[1735481631833,0.45800754,196.81,196.73,7.77868721]
[1735481632016,0.45800754,196.81,196.76,20.0]
[1735481632513,0.45800754,196.83,196.74,20.0]
[1735481638621,0.45800754,196.83,196.75,20.0]
[1735481638992,0.45800754,196.84,196.77,20.0]
[1735481639704,0.45800754,196.84,196.76,20.0]
[1735481640717,0.45800754,196.84,196.77,20.0]
[1735481641294,0.45800754,196.84,196.76,20.0]
[1735481643731,0.45800754,196.84,196.77,20.0]
[1735481646298,23.776884,196.82,196.74,7.77868721]
[1735481646505,0.45800754,196.81,196.74,7.77868721]
[1735481646906,0.45800754,196.81,196.76,20.0]
[1735481647429,0.45800754,196.81,196.73,20.0]
[1735481649306,11.89070754,196.81,196.73,20.0]
[1735481653309,0.45800754,196.83,196.74,20.0]
[1735481653605,6.55058518,196.84,196.76,20.0]
[1735481654634,6.55058518,196.84,196.78,20.0]
[1735481658032,0.45800754,196.83,196.78,20.0]
[1735481665118,0.45800754,196.83,196.75,7.77868721]
[1735481665503,0.45800754,196.83,196.78,20.0]
[1735481666414,11.4317,196.82,196.76,20.0]
[1735481666715,0.45800754,196.81,196.76,20.0]
[1735481668236,24.23489154,196.81,196.76,20.0]
[1735481668533,22.59046321,196.8,196.72,7.77868721]
[1735481668736,0.45800754,196.79,196.75,20.0]
[1735481669613,0.45800754,196.79,196.71,20.0]
[1735481670340,0.45800754,196.79,196.7,20.0]
[1735481670831,24.23489154,196.79,196.7,20.0]
[1735481671038,24.23489154,196.79,196.69,20.0]
[1735481673214,11.434,196.78,196.69,20.0]
[1735481673415,0.45800754,196.77,196.69,20.0]
[1735481673934,24.23489154,196.77,196.69,20.0]
[1735481674141,24.23489154,196.77,196.68,20.0]
[1735481676231,23.776884,196.75,196.65,7.77868721]
[1735481676424,0.45800754,196.74,196.65,7.77868721]
[1735481677245,23.776884,196.73,196.68,20.0]
[1735481677422,0.45800754,196.72,196.64,7.77868721]
[1735481677824,0.45800754,196.72,196.67,20.0]
[1735481678441,0.45800754,196.72,196.63,17.16337443]
[1735481678442,0.45800754,196.72,196.66,20.0]
[1735481678622,23.776884,196.7,196.66,20.0]
[1735481678817,0.45800754,196.69,196.66,20.0]
[1735481679021,0.45800754,196.69,196.64,20.0]
[1735481679442,0.45800754,196.69,196.59,7.77868721]
[1735481679747,0.45800754,196.69,196.58,40.52463608]
[1735481680630,0.45800754,196.69,196.61,20.0]
[1735481680833,11.4399,196.68,196.61,20.0]
[1735481681031,0.45800754,196.67,196.61,20.0]
[1735481681235,0.45800754,196.67,196.59,20.0]
[1735481682454,24.23489154,196.67,196.59,20.0]
[1735481683149,24.23489154,196.67,196.58,1.6312]
[1735481683651,24.23489154,196.67,196.57,20.0]
[1735481685659,24.23489154,196.67,196.56,20.0]
[1735481686653,24.23489154,196.67,196.54,0.76295179]
[1735481686864,30.168184,196.65,196.54,0.76295179]
[1735481687054,0.45800754,196.64,196.54,0.76295179]
[1735481688650,0.45800754,196.64,196.53,2.35549915]
[1735481688841,0.45800754,196.64,196.55,20.0]
[1735481689353,0.45800754,196.64,196.55,17.5]
[1735481689851,0.45800754,196.64,196.53,2.35549915]
[1735481691336,0.45800754,196.64,196.54,20.0]
[1735481694760,23.776884,196.63,196.54,19.5]
[1735481694940,0.45800754,196.62,196.54,19.5]
[1735481695960,0.45800754,196.63,196.54,19.5]
[1735481697749,0.45800754,196.64,196.55,20.0]
[1735481698237,0.45800754,196.64,196.54,0.76304461]
[1735481698444,0.45800754,196.64,196.53,1.5925]
[1735481698742,0.45800754,196.64,196.54,20.0]
[1735481699166,24.23489154,196.64,196.54,20.0]
[1735481702957,11.4428,196.63,196.53,1.5925]
[1735481703266,0.45800754,196.62,196.5,20.76307613]
[1735481703460,24.23489154,196.62,196.5,20.0]
[1735481703766,24.23489154,196.62,196.48,2.29417885]
[1735481703962,0.45800754,196.62,196.48,2.29417885]
[1735481704271,23.776884,196.6,196.48,1.531]
[1735481704572,23.776884,196.57,196.48,1.531]
[1735481704766,23.776884,196.57,196.46,0.7632287]
[1735481704767,0.45800754,196.56,196.46,0.7632287]
[1735481704953,0.45800754,196.56,196.44,0.76332592]
[1735481705148,0.45800754,196.56,196.46,20.0]
[1735481705347,0.45800754,196.56,196.44,0.76332592]
[1735481707173,0.45800754,196.56,196.46,20.0]
[1735481707369,0.45800754,196.57,196.48,20.0]
[1735481707565,6.3635,196.58,196.5,20.0]
[1735481707741,0.45800754,196.57,196.5,20.0]
[1735481708345,6.3635,196.58,196.5,20.0]
[1735481708561,0.45800754,196.57,196.5,20.0]
[1735481708870,0.45800754,196.57,196.49,0.76314764]
[1735481709170,0.45800754,196.57,196.5,20.0]
[1735481709378,6.3635,196.58,196.5,20.0]
[1735481709670,0.45800754,196.57,196.5,20.0]
[1735481710172,0.45800754,196.57,196.49,0.76314764]
[1735481710686,0.45800754,196.57,196.48,21.6549]
[1735481714172,0.45800754,196.57,196.52,20.0]
[1735481714353,0.45800754,196.6,196.52,20.0]
[1735481714547,6.3696,196.64,196.52,20.0]
[1735481714548,0.45800754,196.63,196.52,20.0]
[1735481719610,35.67809154,196.63,196.52,20.0]
[1735481720186,58.56369154,196.63,196.48,1.6549]
[1735481720378,62.55385165,196.63,196.48,1.6549]
[1735481720700,23.776884,196.61,196.48,1.6549]
[1735481720866,0.45800754,196.6,196.5,20.0]
[1735481721263,11.4451,196.59,196.48,21.6549]
[1735481721466,24.23489154,196.58,196.48,21.6549]
[1735481722397,24.23489154,196.58,196.48,1.6549]
[1735481724061,11.4463,196.57,196.46,20.76329396]
[1735481724265,0.45800754,196.56,196.44,0.76332933]
[1735481724894,24.23489154,196.56,196.44,0.76332933]
[1735481725266,24.23489154,196.56,196.46,20.0]
[1735481727492,11.4474,196.55,196.46,20.0]
[1735481727695,24.23489154,196.54,196.45,20.0]
[1735481728499,24.23489154,196.54,196.43,20.0]
[1735481729096,23.776884,196.52,196.43,20.0]
[1735481729275,0.45800754,196.51,196.43,20.0]
[1735481729975,0.45800754,196.51,196.41,20.0]
[1735481730182,6.4845,196.5,196.41,20.0]
[1735481730382,0.45800754,196.49,196.41,20.0]
[1735481732486,24.23489154,196.49,196.41,20.0]
[1735481732693,11.4515,196.48,196.35,10.19326238]
[1735481732892,0.45800754,196.47,196.35,10.19326238]
[1735481733093,0.45800754,196.47,196.38,20.0]
[1735481733776,0.45800754,196.47,196.35,10.19326238]
[1735481733777,0.45800754,196.47,196.37,20.0]
[1735481735108,0.45800754,196.47,196.35,2.28329074]
[1735481735399,0.45800754,196.47,196.36,20.0]
[1735481739104,0.45800754,196.47,196.35,21.5196]
[1735481739407,10.1801,196.46,196.35,21.5196]
[1735481739605,0.45800754,196.45,196.35,21.5196]
[1735481740075,6.57,196.44,196.34,0.76373285]
[1735481740279,24.23489154,196.43,196.32,7.90997164]
[1735481740705,24.23489154,196.43,196.35,20.0]
[1735481741506,23.776884,196.41,196.33,20.0]
[1735481741717,0.45800754,196.4,196.31,36.0685]
[1735481741889,0.45800754,196.52,196.42,20.0]
[1735481742207,0.45800754,196.54,196.43,20.0]
[1735481742385,0.45800754,196.54,196.44,0.7633358]
[1735481742783,0.45800754,196.54,196.43,20.0]
[1735481743408,34.41099154,196.54,196.4,8.0336]
[1735481743706,34.41099154,196.54,196.4,1.5145]
[1735481743908,34.41099154,196.54,196.4,21.5145]
[1735481744419,34.41099154,196.54,196.4,1.5145]
[1735481745807,34.41099154,196.54,196.38,19.0145]
[1735481747611,23.776884,196.52,196.33,0.76362133]
[1735481747816,23.776884,196.5,196.33,0.76362133]
[1735481748020,0.45800754,196.49,196.33,0.76362133]
[1735481748524,1.5862,196.48,196.3,7.28288273]
[1735481748709,24.23489154,196.47,196.3,7.28288273]
[1735481749024,23.776884,196.45,196.33,20.0]
[1735481749201,0.45800754,196.44,196.33,20.0]
[1735481749402,10.63930754,196.44,196.29,30.0]
[1735481749586,10.63930754,196.44,196.27,9.42447164]
[1735481749986,23.776884,196.43,196.3,20.0]
[1735481750237,23.776884,196.4,196.3,20.0]
[1735481750382,0.45800754,196.39,196.26,0.7638181]
[1735481751187,0.45800754,196.39,196.28,20.0]
[1735481753100,0.45800754,196.39,196.29,20.76395106]
[1735481753294,0.45800754,196.4,196.29,20.76395106]
[1735481753489,0.45800754,196.4,196.29,20.0]
[1735481753914,24.23489154,196.4,196.26,0.76397463]
[1735481754896,10.1838,196.39,196.28,20.0]
[1735481755111,0.45800754,196.38,196.28,20.0]
[1735481758223,0.45800754,196.38,196.3,20.0]
[1735481758705,1.5862,196.41,196.3,20.0]
[1735481758903,1.5862,196.41,196.29,0.7639732]
[1735481758904,0.45800754,196.45,196.34,20.0]
[1735481759708,10.1812,196.44,196.32,20.0]
[1735481759915,0.45800754,196.43,196.32,20.0]
[1735481760309,10.63920754,196.44,196.33,0.763823]
[1735481760517,10.63920754,196.44,196.29,30.76369399]
[1735481761023,0.45800754,196.44,196.35,20.0]
[1735481761321,0.45800754,196.45,196.35,20.0]
[1735481762203,0.45800754,196.47,196.36,0.76372356]
[1735481762406,0.45800754,196.49,196.36,0.76372356]
[1735481762800,24.23489154,196.49,196.36,20.0]
[1735481763113,23.776884,196.45,196.36,20.0]
[1735481763300,0.45800754,196.44,196.32,20.0]
[1735481764113,0.45800754,196.44,196.3,1.5818]
[1735481764306,10.1817,196.43,196.3,1.5818]
[1735481764511,24.23489154,196.42,196.3,1.5818]
[1735481766109,0.45800754,196.42,196.3,1.5818]
[1735481766316,10.1827,196.41,196.3,1.5818]
[1735481766515,0.45800754,196.4,196.3,1.5818]
[1735481767130,0.45800754,196.4,196.29,20.0]
[1735481767434,0.45800754,196.4,196.3,0.76394732]
[1735481768000,2.04440754,196.4,196.29,20.0]
[1735481768204,10.1838,196.39,196.27,20.76391907]
[1735481768406,0.45800754,196.38,196.27,20.76391907]
[1735481769312,0.45800754,196.38,196.29,20.0]
[1735481769517,16.5721,196.39,196.29,20.0]
[1735481769719,16.5721,196.39,196.29,20.76394442]
[1735481770532,0.45800754,196.38,196.29,20.76394442]
[1735481770721,16.5721,196.39,196.29,20.76394442]
[1735481771235,0.45800754,196.38,196.29,20.76394442]
[1735481771819,6.3883,196.39,196.31,20.0]
[1735481772016,1.5864,196.4,196.33,20.0]
[1735481772232,6.84630754,196.44,196.33,20.76375674]
[1735481772724,6.84630754,196.44,196.33,50.76375674]
[1735481772925,0.45800754,196.44,196.33,22.32335674]
[1735481773141,0.45800754,196.44,196.34,20.0]
[1735481773850,10.1817,196.43,196.28,8.72158578]
[1735481774136,0.45800754,196.42,196.31,20.0]
[1735481774344,0.45800754,196.42,196.32,20.0]
[1735481774913,10.1827,196.41,196.31,20.0]
[1735481775138,0.45800754,196.4,196.31,20.0]
[1735481776144,10.1838,196.39,196.29,0.76389767]
[1735481776315,0.45800754,196.38,196.29,20.0]
[1735481776514,0.45800754,196.38,196.28,1.5596]
[1735481777013,0.45800754,196.38,196.29,20.0]
[1735481777741,10.1848,196.37,196.29,20.0]
[1735481777927,0.45800754,196.36,196.29,20.0]
[1735481778513,0.45800754,196.36,196.25,0.76404459]
[1735481779345,0.45800754,196.36,196.27,20.0]
[1735481779716,10.1858,196.35,196.27,20.0]
[1735481779911,0.45800754,196.34,196.27,20.0]
[1735481780215,0.45800754,196.34,196.26,20.0]
[1735481783243,0.45800754,196.34,196.23,8.67408015]
[1735481784739,0.45800754,196.34,196.26,20.0]
[1735481786032,10.1869,196.33,196.26,20.0]
[1735481786224,0.45800754,196.32,196.26,20.0]
[1735481787162,0.45800754,196.32,196.25,20.0]
[1735481788044,10.1879,196.31,196.25,20.0]
[1735481788251,0.45800754,196.3,196.25,20.0]
[1735481789051,1.5529,196.29,196.22,7.90997164]
[1735481789350,10.64750754,196.28,196.22,5.40997164]
[1735481789529,10.64750754,196.28,196.2,5.40997164]
[1735481790355,10.64750754,196.28,196.23,20.0]
[1735481790954,10.64750754,196.28,196.16,0.76441206]
[1735481791357,10.64750754,196.28,196.17,20.0]
[1735481791857,10.64750754,196.28,196.17,20.76441201]
[1735481792859,10.64750754,196.28,196.17,20.0]
[1735481793360,10.64750754,196.28,196.15,20.76441791]
[1735481793734,10.1905,196.26,196.13,0.76450991]
[1735481793938,0.45800754,196.25,196.13,0.76450991]
[1735481794135,0.45800754,196.25,196.14,20.0]
[1735481794337,6.0385,196.24,196.13,0.76450991]
[1735481794535,0.45800754,196.23,196.13,0.76450991]
[1735481794737,0.45800754,196.23,196.13,20.0]
[1735481795448,10.65020754,196.23,196.13,20.0]
[1735481796543,10.1931,196.21,196.11,0.76458506]
[1735481796747,0.45800754,196.2,196.09,0.76467319]
[1735481797133,0.45800754,196.2,196.11,20.0]
[1735481797756,0.45800754,196.2,196.09,0.76467319]
[1735481798052,0.95589998,196.2,196.08,1.5608]
[1735481798243,0.95589998,196.2,196.09,20.0]
[1735481798657,10.1941,196.19,196.08,2.32552251]
[1735481798846,0.9559076,196.18,196.08,2.32552251]
[1735481799150,0.9559076,196.18,196.09,20.0]
[1735481799535,0.9559076,196.18,196.04,30.0]
[1735481799536,6.4078,196.17,196.07,20.0]
[1735481799755,0.95596673,196.16,196.07,20.0]
[1735481799934,11.15176673,196.16,196.05,20.76476852]
[1735481800336,23.776884,196.15,196.05,20.76476852]
[1735481800530,25.345484,196.13,196.01,1.5492]
[1735481800751,0.95630626,196.12,196.01,1.5492]
[1735481801748,10.1983,196.11,196.0,0.76488609]
[1735481801952,0.95637237,196.1,196.01,0.76509789]
[1735481802152,0.95611878,196.09,196.01,0.76509789]
[1735481802361,6.4078,196.09,195.96,1.5492]
[1735481802566,0.95653273,196.08,195.96,1.5492]
[1735481802745,23.776884,196.07,195.96,1.5492]
[1735481803075,0.95661208,196.06,195.93,0.76518788]
[1735481803372,1.5555,196.05,195.93,0.76518788]
[1735481803543,0.95668664,196.04,195.93,0.76518788]
[1735481803741,0.95668664,196.04,195.93,20.76518788]
[1735481804840,0.95668664,196.04,195.95,20.0]
[1735481805170,0.95655482,196.08,195.97,20.0]
[1735481805347,0.95655482,196.08,195.99,20.0]
[1735481805942,0.95655482,196.08,195.95,20.7651526]
[1735481806143,0.95655482,196.08,195.97,20.0]
[1735481806449,0.95655482,196.08,195.99,20.0]
[1735481807252,0.95655482,196.08,195.98,0.7651917]
[1735481807966,0.95655482,196.08,195.97,20.0]
[1735481808168,0.95655482,196.08,195.97,20.76517115]
[1735481808479,10.2004,196.07,195.95,0.76517853]
[1735481808662,0.95656975,196.06,195.95,0.76517853]
[1735481810772,0.95656975,196.06,195.95,20.76517853]
[1735481810964,0.95656975,196.06,195.95,0.76517853]
[1735481811170,0.95656975,196.06,195.93,0.76525083]
[1735481811475,10.2014,196.05,195.94,20.0]
[1735481811663,0.95667289,196.04,195.94,20.0]
[1735481812048,1.5325,196.03,195.93,20.0]
[1735481812271,0.95670415,196.02,195.93,20.0]
[1735481812858,1.5325,196.03,195.94,0.76538051]
[1735481813157,1.5325,196.03,195.95,20.0]
[1735481813744,1.5325,196.03,195.88,0.45516546]
[1735481813745,0.9565865,196.02,195.88,0.45516546]
[1735481813983,6.1804,196.01,195.88,0.45516546]
[1735481814277,0.95680513,196.0,195.9,20.0]
[1735481814449,0.95680513,196.0,195.91,0.45555505]
[1735481815274,0.95680513,196.0,195.9,20.0]
[1735481816376,10.2046,195.99,195.88,0.45557764]
[1735481816572,0.95683087,195.98,195.85,0.45565421]
[1735481816779,0.95683087,195.98,195.83,0.45613157]
[1735481816969,7.7129,195.97,195.83,0.45613157]
[1735481817154,23.776884,195.95,195.81,0.45631566]
[1735481817365,0.95723085,195.94,195.81,0.45631566]
[1735481817583,23.776884,195.93,195.77,2.01569413]
[1735481817875,23.776884,195.91,195.78,20.0]
[1735481818072,0.95742031,195.9,195.78,20.0]
[1735481818276,16.3903,195.89,195.77,0.45649413]
[1735481818586,23.776884,195.87,195.72,0.45686479]
[1735481818801,0.95763577,195.86,195.72,0.45686479]
[1735481819149,0.95755127,195.88,195.79,20.0]
[1735481819452,0.95730006,195.98,195.83,20.0]
[1735481819656,0.95706751,195.97,195.83,20.0]
[1735481819856,0.95725377,196.0,195.83,20.0]
[1735481820066,0.95704357,196.02,195.85,20.0]
[1735481820281,11.16044357,196.02,195.86,0.45584141]
[1735481820499,11.16044357,196.02,195.85,20.45596906]
[1735481821005,31.56644357,196.02,195.83,0.45609034]
[1735481821299,7.7129,196.01,195.8,0.45642104]
[1735481821470,0.95723543,196.0,195.81,20.0]
[1735481821674,23.776884,195.99,195.81,20.0]
[1735481821967,23.776884,195.96,195.76,6.6235]
[1735481822188,23.776884,195.94,195.77,0.45686928]
[1735481822392,23.776884,195.9,195.75,20.45686928]
[1735481822579,0.95755215,195.89,195.75,20.45686928]
[1735481822787,23.776884,195.86,195.75,0.45686928]
[1735481822972,0.95759785,195.85,195.72,0.45718816]
[1735481823598,6.1804,195.84,195.71,20.0]
[1735481823815,0.95771684,195.83,195.72,0.45742615]
[1735481823976,0.95756902,195.86,195.74,30.0]
[1735481824167,0.95744278,195.9,195.75,0.45687802]
[1735481824368,0.95744278,195.9,195.79,20.0]
[1735481824772,16.3891,195.91,195.8,0.45664257]
[1735481824773,6.1804,195.91,195.8,0.45664257]
[1735481824962,0.95720359,195.9,195.72,30.45639964]
[1735481825158,0.95720359,195.9,195.74,30.0]
[1735481825373,0.95720359,195.9,195.79,20.0]
[1735481825569,0.95720359,195.9,195.8,0.45652555]
[1735481826873,0.95720359,195.9,195.77,0.45660442]
[1735481827256,0.95720359,195.9,195.77,20.45660442]
[1735481829787,23.776884,195.89,195.7,30.45685833]
[1735481829969,0.95765887,195.88,195.7,30.45685833]
[1735481830179,0.95765887,195.88,195.73,30.0]
[1735481830373,0.95765887,195.88,195.74,0.45700433]
[1735481830563,0.95765887,195.88,195.74,20.45700433]
[1735481830886,10.2108,195.87,195.74,0.45700433]
[1735481831072,0.95757278,195.86,195.74,20.45700433]
[1735481831274,0.95757278,195.86,195.76,20.0]
[1735481832293,0.95757278,195.86,195.74,20.45700433]
[1735481832790,24.73445678,195.86,195.72,20.45709001]
[1735481832977,0.95757278,195.86,195.72,20.45709001]
[1735481833187,0.95757278,195.86,195.74,20.0]
[1735481834373,0.95757278,195.86,195.75,0.45717182]
[1735481834578,0.95757278,195.86,195.76,20.0]
[1735481835967,0.95753524,195.9,195.81,20.0]
[1735481836982,0.95753524,195.9,195.79,20.4564379]
[1735481837188,0.95753524,195.9,195.81,20.0]
[1735481838295,6.1804,195.91,195.82,0.45655226]
[1735481838679,11.16637657,195.9,195.79,0.4563456]
[1735481838869,5.88241043,195.89,195.74,30.0]
[1735481839070,0.95742527,195.88,195.75,0.456843]
[1735481839380,6.8398357,195.88,195.77,20.0]
[1735481839981,0.95742527,195.88,195.78,0.45681843]
[1735481840184,0.95733984,195.89,195.78,0.45681843]
[1735481841469,0.95733984,195.89,195.78,20.45681843]
[1735481842067,10.2103,195.88,195.74,0.45695351]
[1735481842269,0.9575162,195.87,195.74,0.45695351]
[1735481843696,10.2103,195.88,195.76,20.0]
[1735481844071,0.50049134,195.87,195.76,20.0]
[1735481844276,0.50049134,195.87,195.77,0.7660067]
[1735481845419,0.50049134,195.87,195.77,20.7660067]
[1735481845577,6.4884,195.84,195.72,0.76593042]
[1735481845777,24.27737534,195.83,195.7,0.76610613]
[1735481845985,24.27737534,195.83,195.67,0.7662621]
[1735481846206,24.27737534,195.83,195.69,20.0]
[1735481846497,30.99745034,195.83,195.69,20.0]
[1735481846681,24.27737534,195.83,195.67,0.7662621]
[1735481846883,23.776884,195.81,195.67,0.7662621]
[1735481847080,0.50049134,195.8,195.67,20.7662621]
[1735481847294,0.50049134,195.8,195.69,20.0]
[1735481847884,10.215,195.79,195.69,20.0]
[1735481848086,0.50049134,195.81,195.73,20.0]
[1735481848293,0.50049134,195.82,195.73,20.0]
[1735481848982,0.50049134,195.82,195.72,0.76612763]
[1735481849382,0.50049134,195.82,195.73,20.0]
[1735481850584,10.2139,195.81,195.71,0.76615763]
[1735481850779,0.50049134,195.8,195.72,0.76621355]
[1735481850991,10.2139,195.81,195.73,20.0]
[1735481852086,10.2139,195.81,195.71,0.76614505]
[1735481852287,0.50049134,195.8,195.71,0.76614505]
[1735481852489,0.50049134,195.8,195.72,20.0]
[1735481853591,0.50049134,195.8,195.71,0.76614505]
[1735481854705,0.50049134,195.8,195.72,20.0]
[1735481854911,0.50049134,195.83,195.74,20.0]
[1735481855109,6.98889134,195.84,195.75,0.76606701]
[1735481855694,0.50049134,195.87,195.8,20.0]
[1735481855896,13.06777046,195.89,195.81,20.76592184]
[1735481855897,1.5513,195.89,195.81,20.76592184]
[1735481856409,1.5513,195.89,195.81,20.0]
[1735481856633,0.50049134,195.88,195.8,20.0]
[1735481864294,1.5513,195.89,195.81,20.76585944]
[1735481865726,2.05179134,195.89,195.81,20.76585944]
[1735481865894,1.5513,195.89,195.81,20.76585944]
[1735481866818,0.50049134,195.93,195.85,20.0]
[1735481866819,10.2077,195.93,195.85,20.0]
[1735481867026,10.2077,195.93,195.85,20.76563063]
[1735481867332,10.70819134,195.93,195.85,0.76563063]
[1735481867836,10.70819134,195.93,195.83,20.7656829]
[1735481868718,10.70819134,195.93,195.85,20.0]
[1735481868902,10.2077,195.93,195.85,20.76562596]
[1735481869301,8.1935,195.94,195.89,20.0]
[1735481870296,10.206,195.97,195.89,20.0]
[1735481871719,10.206,195.97,195.87,20.76551378]
[1735481871922,10.206,195.97,195.89,20.0]
[1735481872627,2.05179134,195.98,195.89,20.0]
[1735481872799,1.5513,195.98,195.89,20.0]
[1735481873001,6.6422,195.99,195.93,20.0]
[1735481874722,0.50049134,195.98,195.86,0.76533826]
[1735481874895,8.42562556,195.98,195.85,1.6267]
[1735481875224,8.42562556,195.98,195.87,20.0]